Cogmind - Beta 15 @@@ ROGUE MODE // 2025.07.28 @ 13:45:08 Player: ilja Result: Destroyed by Y-45 Defender with Beam Rifle Performance ------------- Evolutions (1) 500 Regions Visited (2) 400 Robots Destroyed (33) 165 Value Destroyed (711) 711 Prototype IDs (0) 0 Alien Tech Used (0) 0 Bonus (0) 0 TOTAL SCORE: 1776 Bonus ------- None Cogmind --------- Core Integrity 0/400 Matter 429/500 Energy 100/100 System Corruption 0% Temperature Cool (9) Movement Core (1400) Ox27 Location -9/Materials Parts ------- > --- POWER (1) -------- (None) > --- PROPULSION (2) --- (None) > --- UTILITY (4) ------ Huge Storage Unit High-capacity Matter Pod > --- WEAPON (2) ------- (None) > --- INVENTORY (25) --- Ion Engine Ion Engine Ion Engine Light Treads Light Treads Aluminum Leg Beam Rifle Light EM Pulse Cannon Assault Rifle Mining Laser Peak State ------------ > --- POWER ------------ Light Ion Engine > --- PROPULSION ------- Compact Wheel Compact Wheel > --- UTILITY ---------- Huge Storage Unit High-capacity Matter Pod Advanced Weight Redist. System Seismic Detector > --- WEAPON ----------- Particle Gun Assault Rifle > --- INVENTORY -------- Ion Engine Light Treads Light Treads Aluminum Leg EM Pulse Gun Beam Rifle Assault Rifle Grenade Launcher Mining Laser [Rating: 13] Favorites ----------- Power Light Ion Engine Engine Light Ion Engine Propulsion Compact Wheel Treads Light Treads Wheel Compact Wheel Utility Huge Storage Unit Device Seismic Detector Storage Huge Storage Unit Processor Signal Interpreter Weapon Assault Rifle Energy Gun EM Pulse Gun Ballistic Gun Assault Rifle Launcher Grenade Launcher Build | -11 -10 -9 ------- Run | Yrd Mat Mat Slots Evolved 2 | . . 2 Power . | . . . Propulsion . | . . . Utility 2 | . . 2 Weapon . | . . . Parts Attached 22 | 8 1 13 Power 4 | 1 . 3 Engine 4 | 1 . 3 Core . | . . . Reactor . | . . . Propulsion 5 | 3 . 2 Treads 1 | 1 . . Leg . | . . . Wheel 4 | 2 . 2 Hover . | . . . Flight . | . . . Utility 7 | 2 1 4 Device 2 | 1 . 1 Storage 4 | 1 1 2 Processor 1 | . . 1 Hackware . | . . . Protection . | . . . Artifact . | . . . Weapon 6 | 2 . 4 Energy Gun 3 | 1 . 2 Energy Cannon . | . . . Ballistic Gun 2 | 1 . 1 Ballistic Cannon . | . . . Launcher 1 | . . 1 Special Weapon . | . . . Impact Weapon . | . . . Slashing Weapon . | . . . Piercing Weapon . | . . . Special Melee Weapon . | . . . Unidentified Prototypes . | . . . Parts Lost 15 | . . 15 Power 3 | . . 3 Propulsion 4 | . . 4 Utility 3 | . . 3 Weapon 5 | . . 5 Highest Loss Streak 5 | . . 5 To Critical Strikes . | . . . Average Backups 7 | 4 7 8 Power 1 | . 1 1 Propulsion 2 | 2 3 2 Utility . | . . . Weapon 3 | 1 2 4 Tool/Special . | . . . Unused Backups 8 | 1 . 7 Power 2 | . . 2 Propulsion 2 | . . 2 Utility . | . . . Weapon 4 | 1 . 3 Tool/Special . | . . . Average Slot Usage (%) 87 | . 100 79 Engine 9 | . 14 6 Wheel 21 | . 28 16 Device 11 | . 14 9 Storage 18 | . 14 21 Processor 2 | . . 4 Energy Gun 12 | . 14 10 Ballistic Gun 9 | . 14 6 Launcher 2 | . . 3 Peak Build Rating 13 | 7 7 13 Average Rating 7 | 5 7 8 On Entrance 4 | . 7 7 Naked Turns . | . . . Heaviest Build 97 | 13 88 97 Greatest Support 32 | 32 32 32 Greatest Overweight (x) 31 | . 2 31 Average Overweight (x) 2 | . 1 3 Largest Inventory Capacity 25 | 8 25 25 Average Capacity 21 | 7 24 25 Most Carried 10 | 7 9 10 Average Carried 7 | 4 7 8 Final Capacity 25 | 8 25 25 Final Carried 10 | 6 9 10 Class Distribution -------------------- 100% | Mutant Dominant Class ---------------- Mutant | -10/Materials Mutant | -9/Materials Resources | -11 -10 -9 ----------- Run | Yrd Mat Mat Matter Collected 769 | 327 34 408 Remotely . | . . . Salvage Created 998 | 175 114 709 Parts 68 | 17 10 41 Haulers Intercepted . | . . . Recyclers Shooed . | . . . Parts Field Recycled . | . . . Retrieved Matter . | . . . Parts Self-Destructed . | . . . Prevented . | . . . Kills | -11 -10 -9 ------- Run | Yrd Mat Mat Combat Hostiles Destroyed 22 | . 6 16 Guns 16 | . 6 10 AOE 4 | . . 4 Classes Destroyed 9 | 3 2 4 Worker 2 | 2 . . Builder 2 | . . 2 Tunneler 3 | 3 . . Recycler 2 | 1 . 1 Watcher 2 | . 1 1 Swarmer 9 | . 6 3 Grunt 8 | . . 8 Duelist 2 | . . 2 Sentry 3 | . . 3 Best Kill Streak 6 | 2 3 6 Combat Bots Only 3 | . 3 3 Max Kills in Single Turn 2 | 1 2 2 Gunslinging 1 | . 1 . Exploded 1 | . . 1 Melee . | . . . Uniques/NPCs Destroyed . | . . . Combat | -11 -10 -9 -------- Run | Yrd Mat Mat Hostile Shots Fired 144 | . 16 128 Missed 40 | . 7 33 Hits 104 | . 9 95 Projectile 104 | . 9 95 Critical Strikes 3 | . . 3 Damage Taken 1427 | 7 79 1341 Core 417 | 7 10 400 Absorbed by Shields . | . . . Core Remaining (%) 95 | 97 93 . Volleys Fired 81 | 17 10 54 Largest 2 | 2 2 2 Hottest 105 | 60 60 105 Shots Fired 151 | 29 20 102 Gun 138 | 29 20 89 Cannon . | . . . Launcher 13 | . . 13 Special . | . . . Kinetic 56 | 17 10 29 Thermal 44 | . . 44 Explosive 13 | . . 13 Electromagnetic 38 | 12 10 16 Robot Hit Streak 17 | 5 3 17 Robot Miss Streak 3 | 2 3 3 Penetration Max . | . . . Secondary Targets 2 | . 1 1 Max Gunslinging Chain 1 | . 1 1 Shots Hit Robots 95 | 17 10 68 Core Hits 47 | 7 7 33 Critical Kills . | . . . Critical Parts Destroyed . | . . . Critical Strikes 2 | . . 2 Burn 2 | . . 2 Melee Attacks . | . . . Impact . | . . . Slashing . | . . . Piercing . | . . . Sneak Attacks . | . . . Combat Hostiles . | . . . Follow-up Attacks . | . . . Damage Inflicted 1670 | 227 177 1266 Guns 1180 | 212 138 830 Cannons . | . . . Explosions 454 | . 39 415 Melee . | . . . Ramming 36 | 15 . 21 Kinetic 495 | 133 73 289 Thermal 506 | . 39 467 Explosive 361 | . . 361 Electromagnetic 272 | 79 65 128 Impact . | . . . Slashing . | . . . Piercing . | . . . Highest Corruption . | . . . Average Corruption . | . . . Corruption Purged . | . . . Corruption Blocked . | . . . Overload Shots . | . . . Overflow Damage 13 | . . 13 Projectiles . | . . . Explosions 13 | . . 13 Melee . | . . . Knockbacks 1 | . . 1 Impact 1 | . . 1 Kinetic . | . . . Secondary . | . . . Self-Inflicted Damage 81 | 7 . 74 Shots 2 | . . 2 Rammed 4 | 1 . 3 Targets Rammed 4 | 1 . 3 Kicked . | . . . Crushed . | . . . Highest Temperature 218 | . . 218 Average Temperature 62 | . . 62 Received Heat Transfer 450 | . . 450 Effects 2 | . . 2 Interference 2 | . . 2 Siege Activations . | . . . Martial Activations . | . . . Shielding Activations . | . . . Robots Disrupted . | . . . Combat Hostiles . | . . . Robots Corrupted 1 | . . 1 Combat Hostiles 1 | . . 1 Parts Fried 1 | . . 1 Impact Corruptions 1 | 1 . . Robots Melted 1 | . . 1 Combat Hostiles 1 | . . 1 Parts Melted . | . . . Heat Transferred 1284 | . 50 1234 Parts Sabotaged . | . . . Parts Stolen . | . . . Parts Stripped . | . . . Power Chain Reactions 2 | . 1 1 Alert | -11 -10 -9 ------- Run | Yrd Mat Mat Maximum Alert Level . | . . . Low Security (%) 100 | 100 100 100 Level 1 . | . . . Level 2 . | . . . Level 3 . | . . . Level 4 . | . . . Level 5 . | . . . High Security . | . . . Max Security . | . . . Peak Influence 182 | 5 62 182 Initial 5 | . . 5 Average 27 | . 15 43 Influence Increases 727 | 30 150 547 Destroy 0b10 Robot/C 440 | . 120 320 Destroy 0b10 Robot/NC 55 | 30 5 20 Destroy Leader 104 | . 22 82 Disable Machine 45 | . . 45 Destroy Structure 68 | . 3 65 Lose Combat Pursuer 15 | . . 15 Influence Decreases 557 | 30 136 391 Entered New Map 9 | . . 9 Time Decay 447 | 30 136 281 Lost Part 101 | . . 101 Squads Dispatched 1 | . . 1 Investigation . | . . . Extermination . | . . . Reinforcement 1 | . . 1 Assault . | . . . Garrison . | . . . Intercept . | . . . Searches Triggered . | . . . Construction Impeded 1 | . . 1 Haulers Reinforced . | . . . Active Scanning Responses . | . . . Cargo Convoy Interrupts . | . . . Stealth | -11 -10 -9 --------- Run | Yrd Mat Mat Distress Signals . | . . . Communications Jammed . | . . . Distress Signals . | . . . Times Spotted 31 | . 9 22 Peak Tracking Total 4 | . 3 4 Tactical Retreats 1 | . . 1 Traps | -11 -10 -9 ------- Run | Yrd Mat Mat Traps Triggered . | . . . Indirectly . | . . . Trap Hack Attempts . | . . . Triggered . | . . . Disarmed . | . . . Reprogrammed . | . . . Reused . | . . . Traps Extracted . | . . . Installed . | . . . Triggered . | . . . Machines | -11 -10 -9 ---------- Run | Yrd Mat Mat Machines Disabled 3 | . . 3 Max in Single Turn 1 | . . 1 Machines Repaired . | . . . Machines Dismantled . | . . . Machines Sabotaged . | . . . Overloaded Fab Kills . | . . . Hacking | -11 -10 -9 --------- Run | Yrd Mat Mat Machines Accessed 4 | . 1 3 Terminals 4 | . 1 3 Fabricators . | . . . Repair Stations . | . . . Recycling Units . | . . . Scanalyzers . | . . . Garrison Access . | . . . Total Hacks 7 | . 2 5 Successful 5 | . 2 3 Failed 2 | . . 2 Catastrophic . | . . . Database Lockouts . | . . . Manual 7 | . 4 3 Terminals 7 | . 2 5 Fabricators . | . . . Repair Stations . | . . . Recycling Units . | . . . Scanalyzers . | . . . Garrison Access . | . . . Terminal Hacks 5 | . 2 3 Record 3 | . . 3 Robot Analysis 2 | . 2 . Fabricator Hacks . | . . . Repair Station Hacks . | . . . Recycling Unit Hacks . | . . . Scanalyzer . | . . . Garrison Access Hacks . | . . . Unauthorized Hacks . | . . . Terminals . | . . . Fabricators . | . . . Repair Stations . | . . . Recycling Units . | . . . Scanalyzers . | . . . Garrison Access . | . . . Data Cores Recovered . | . . . Used . | . . . Hacking Detections 4 | . 1 3 Full Trace Events 1 | . . 1 Feedback Events . | . . . Feedback Blocked . | . . . Robot Schematics Acquired . | . . . Robots Built . | . . . Authchips . | . . . Time . | . . . Total Robot Build Rating . | . . . Part Schematics Acquired . | . . . Parts Built . | . . . Authchips . | . . . Time . | . . . Total Part Build Rating . | . . . Parts Repaired . | . . . Time . | . . . Parts Recycled . | . . . Recycled Matter . | . . . Retrieved Matter . | . . . Retrieved Components . | . . . Parts Scanalyzed . | . . . Part Schematics Acquired . | . . . Parts Damaged . | . . . Bothacking | -11 -10 -9 ------------ Run | Yrd Mat Mat Used RIF Installer . | . . . Robots Hacked . | . . . Non-combat . | . . . Combat . | . . . Robot Hacks Applied . | . . . Relay Couplers Released . | . . . Fabnet Peak Effective % . | . . . Robots Rewired . | . . . Allies Hacked . | . . . Hacks Repelled . | . . . Allies | -11 -10 -9 -------- Run | Yrd Mat Mat Total Allies . | . . . Largest Group . | . . . Highest-Rated Group . | . . . Highest-Rated Ally . | . . . Total Orders . | . . . Ally Attacks . | . . . Total Damage . | . . . Kills . | . . . Allies Corrupted . | . . . Allies Melted . | . . . Intel | -11 -10 -9 ------- Run | Yrd Mat Mat Active Infowar (turns) 1447 | 158 645 644 Seismic 1447 | 158 645 644 Robot Analysis Total 2 | . 2 . Derelict Logs Recovered . | . . . Drone Launches . | . . . Drone Recoveries . | . . . Exploration | -11 -10 -9 ------------- Run | Yrd Mat Mat Turns Passed 1959 | 325 645 989 Spaces Moved 1188 | 254 441 493 Core 14 | 11 . 3 Treads 18 | 18 . . Legs . | . . . Wheels 1156 | 225 441 490 Hover . | . . . Flight . | . . . Fastest Speed 50 | 50 100 130 Average Speed 134 | 102 128 156 Slowest Speed 1600 | 160 130 1600 Overloaded Moves . | . . . Propulsion Burnouts . | . . . Robots Hopped . | . . . Potential Cave-ins . | . . . Cave-ins Triggered . | . . . Exploration Rate (%) 28 | 13 44 28 Regions Visited 2 Branch Regions . Pre-discovered Areas . | . . . Known Exits Taken . | . . . Unknown Exits Taken 2 | 1 1 . Scrap Searched . | . . . Spaces Dug . | . . . Terrain Destroyed 76 | . 3 73 Melee . | . . . Projectile . | . . . AOE 76 | . 3 73 Terrain Rammed . | . . . Walls Destroyed . | . . . Machines Disabled . | . . . Actions | -11 -10 -9 --------- Run | Yrd Mat Mat Total 1404 | 287 500 617 Wait 89 | . 45 44 Move 1186 | 253 440 493 Hop . | . . . Pick Up 18 | 7 3 8 Fast Attach 10 | 7 . 3 Attach 8 | . . 8 Detach . | . . . Swap 5 | 1 1 3 Drop 3 | 1 1 1 Fire 81 | 17 10 54 Melee . | . . . Ram 4 | 1 . 3 Kick . | . . . Crush . | . . . Escape Stasis . | . . . Rewire . | . . . Trap . | . . . Miscellaneous . | . . . Route ------- -11/Scrapyard -10/Materials (discovered 3 exits: *Mat x2 / [*Min]) -9/Materials (discovered 1 exit: [*Mat]) History --------- Turn | Location | Event 27 | -11/Scrapyard | Discovered new exit (range 14) 326 | -11/Scrapyard | Entered Materials 327 | -10/Materials | Build established: Mutant 496 | -10/Materials | Discovered new exit (range 15) 660 | -10/Materials | Discovered new exit (range 15) 848 | -10/Materials | Discovered new exit (range 4) 971 | -10/Materials | Entered another Materials area 971 | -9/Materials | Evolved 2 slots: Utility x2 1646 | -9/Materials | Lost 5 parts (1p2u2w) 1812 | -9/Materials | Discovered new exit (range 3) 1926 | -9/Materials | Core integrity fell below 50% 1949 | -9/Materials | Core integrity fell below 20% 1960 | -9/Materials | Destroyed by Y-45 Defender with Beam Rifle Last Messages --------------- 01913_ U-05 Engineer destroyed. 01917_ U-05 Engineer lays Concrete. 01919_ Com. Wheel destroyed. 01919_ U-05 Engineer builds a Wall. 01919_ Destroyed Heat Sink. 01922_ U-05 Engineer destroyed. 01926_ Overheating: System interference. 01926_ Grenade Launcher temporarily disabled. 01926_ Particle Gun temporarily disabled. 01928_ Grenade Launcher destroyed. 01929_ The unstable cave ceiling collapses. 01931_ Particle Gun destroyed. 01934_ Y-45 Defender heat spikes uncontrollably. 01934_ Imp. Ion Engine destroyed. 01935_ Y-45 Defender heat spikes uncontrollably. 01936_ Y-45 Defender heat damages core (-7). 01938_ The unstable cave ceiling collapses. 01948_ Critical hit (Burn: +37). 01956_ The unstable cave ceiling collapses. 01956_ Lgt. Ion Engine crushed. Map ----- +----------------------------------------------------+ | | | | | | | | | | | | | | | | | | | | | | | | | | | | | | | | | | | | | ?????????????????????????????????????????????????? | | ?????????????????????????????????????????????????? | | ????##########???????????????????????????????????? | | ????# #???????????????????????????????????? | | ????# #???????????????????????????????????? | | ????# #??????????#######??????? ?????? | | ????# #??????????# = ### #|#???????? | | ????# #??????#####@ Y !%= ? | | ????# #??????# T % ##???????? | | ????# ! #??????# # #???????? | | ????? #??????+ # ## # #???????? | | ??????? ????????# #######??## ??????? | | ??????###+########### #??????????#### ""???????? | | ####### r #????????????????????????? | | #????????????????????????? | | """ """ """ #????????????????????????? | | """ """ """ #????????????????????????? | | ###+### """ """ """ #????????????????????????? | | ??????# #????????????????????????? | | ??????# #????????????????????????? | | ??????# """ """ #????????????????????????? | | ??????# """ """ #????????????????????????? | | ??????# """ """ ????????????????????????? | | ??????# ? ????????????????????????? | | ??????# ????????????????????????? | | ??????######### ###?####???????????????????????? | | ??????????????# #??????????????????????????????? | | ######????????# ???????????????????????????????? | | #?????????? ???????????????????????????????? | | #???????????????????????????????????????????? | | #???????????????????????????????????????????? | | #???????????????????????????????????????????? | +----------------------------------------------------+ Best States ------------- Heat Dissipation 28 Energy Generation 12 Energy Capacity 265 Matter Stores 474 Matter Capacity 500 Sight Range 16 Terrain Scan Density 10 Additional Mass Support 9 Evasion (%) 40 Recoil Reduction 1 Item Schematics ----------------- None Robot Schematics ------------------ None Fabricated ------------ Nothing Repaired ---------- Nothing Alien Tech Used ----------------- None Achievements -------------- None Challenges ------------ None Game ------ Seed SignalAerolevGravjet Manual? 0 Play Time 00:25:16 Cumulative 3.9 hours Start 2025.07.28 @ 13:18:40 End 2025.07.28 @ 13:45:08 Sessions 1 Manual Loads 0 Difficulty Rogue Special Mode None Game No. 11 Rogue 11 Adventurer 0 Explorer 0 Win Type - Total 0 Types 0/0/0/0/0/0/0/0/0/0 Lore% 2 Gallery% 6 Achievement% 8 Wizard Run 0 Options --------- Layout 0 ASCII 0 Keyboard 0 Movement Arrows Keybinds 0 Fullscreen 1 Font 20/SmallcapsGlow Map View 66x50 Zoom Use 0% Tactical HUD 1 Map Filters NONE Filters NONE Steam 1 RUN: bf100623-67a1-4f80-b0de-ebcf6d968be1